[Event "44th Chess Olympiad Open 2022"]
[Site "Chennai"]
[Date "2022.08.03"]
[Round "6.10"]
[White "Ganguly, Surya Shekhar"]
[Black "Stremavicius, Titas"]
[Result "1/2-1/2"]
[WhiteElo "2608"]
[BlackElo "2532"]
[Annotator "TA"]
[PlyCount "94"]
[EventDate "2022.??.??"]
[TimeControl "60"]

{[%evp 9,94,14,12,16,17,2,31,27,52,48,47,50,43,37,43,30,35,35,112,41,56,35,25,
33,22,16,58,58,67,58,44,31,69,-28,-12,-19,0,0,0,-69,-57,-64,-53,-37,-65,-65,
-91,-73,-79,-77,-78,-127,-143,-195,-197,-187,-192,-185,-192,-316,-300,-274,0,0,
0,0,-21,-19,-31,-27,0,0,0,0,0,0,0,0,0,0,0,0,0,0,0,0,0]} 1. e4 {[%emt 0:00:29]}
c5 {[%emt 0:00:12]} 2. Nf3 {[%emt 0:00:15]} Nc6 {[%emt 0:00:09]} 3. d4 {
[%emt 0:00:37]} cxd4 {[%emt 0:00:09]} 4. Nxd4 {[%emt 0:00:06]} e5 {[%emt 0:00:
00]} 5. Ne2 {[%emt 0:01:53]} Bc5 {[%emt 0:07:16]} 6. Ng3 {[%emt 0:01:19] B32:
Sicilian: Löwenthal and Kalashnikov Variations.} d6 {[%emt 0:09:03]} 7. Nc3 {
[%emt 0:04:41] [#]} Qf6 $146 {[%emt 0:06:50][%csl Gc5][%cal Rf6f2]} ({
Predecessor:} 7... Nge7 8. a3 Be6 9. Bd3 a6 10. O-O f6 11. Kh1 g5 12. Nh5 Kf7
13. Qf3 Ng8 {1-0 (53) Trujillo Chaverra,F (2016)-Pinzon Pinzon,J (1639)
Risaralda 2021}) 8. Qd2 {[%emt 0:09:17] White is slightly better.} Nge7 {
[%emt 0:00:12]} 9. Nd5 $1 {[%emt 0:03:55]} Nxd5 {[%emt 0:04:59]} 10. exd5 {
[%emt 0:00:08]} Nd4 {[%emt 0:01:10]} 11. c3 {[%emt 0:04:23]} Nf5 {[%emt 0:00:
00]} 12. Ne4 {[%emt 0:04:11]} Qg6 {[%emt 0:00:08]} 13. h4 {[%emt 0:07:05]} (13.
Bb5+ {keeps more tension.} Kf8 14. O-O Bb6 15. Qg5) 13... Ne7 {[%emt 0:17:34]}
({Black should play} 13... Ne3 $14 14. Nxd6+ Qxd6 15. Bb5+ (15. fxe3 Qe7 $14)
15... Bd7 16. Bxd7+ Qxd7 17. fxe3 O-O) 14. f3 {[%emt 0:05:31]} (14. Qe2 $16 {
Strongly threatening h5.} Qg4 15. Qxg4 Bxg4 16. b4) 14... h5 $1 $14 {[%emt 0:
00:00]} 15. Bb5+ {[%emt 0:03:55]} Bd7 {[%emt 0:00:03]} 16. Bxd7+ {[%emt 0:00:
00]} Kxd7 {[%emt 0:00:05]} 17. Qe2 {[%emt 0:05:57]} Rhc8 {[%emt 0:04:11]} 18.
Rh3 {[%emt 0:06:37]} (18. Qb5+ Kd8 $11) 18... f6 {[%emt 0:08:05]} (18... Nxd5
$2 19. Rg3 Qe6 20. Rxg7 $18 (20. Qb5+ Kc7 $16)) 19. Rg3 {[%emt 0:04:22]} Qf7 {
[%emt 0:00:04]} 20. Qb5+ {[%emt 0:01:17]} Kc7 $1 {[%emt 0:08:06]} 21. b4 {
[%emt 0:14:40] 0x0.0019ec5b64d3dp-1022s more active pieces.} (21. Nxc5 $14 dxc5
22. d6+ (22. Qxc5+ Kb8 $11) 22... Kxd6 23. f4 (23. Qxb7 Qd5 $11)) 21... Bb6 {
[%emt 0:01:01]} 22. Qc4+ {[%emt 0:03:57]} Kd7 {[%emt 0:00:28]} 23. Qb5+ {
[%emt 0:00:07]} Kc7 {[%emt 0:00:04]} 24. a4 {[%emt 0:04:21]} ({White should try
} 24. Qc4+ $11 Kb8 25. Nxd6 Rxc4 26. Nxf7) 24... a6 $1 $15 {[%emt 0:01:23]} 25.
Qd3 {[%emt 0:05:07]} f5 $1 $36 {[%emt 0:03:46] Black fights for an advantage.}
26. a5 {[%emt 0:00:17]} Ba7 {[%emt 0:02:56]} 27. Nc5 {[%emt 0:00:00]} dxc5 {
[%emt 0:06:41]} (27... e4 $2 28. fxe4 $1 fxe4 29. Qxe4 $1 (29. Nxe4 Re8 $14)
29... Bxc5 30. bxc5 (30. Rf3 Qxd5 31. Qxd5 Nxd5 $11) 30... Nxd5 31. cxd6+ Kd7
32. Qd4 Re8+ 33. Kd1 Qf1+ 34. Kc2 Qf5+ 35. Kb3 $16 (35. Kb2 Re4 $16)) 28. d6+ {
[%emt 0:00:02]} Kd7 $1 {[%emt 0:00:07][%cal Yc7d7,Yd7e7,Ye7f8]} 29. dxe7+ {
[%emt 0:00:20]} Kxe7 {[%emt 0:00:02] aiming for ...cxb4.} 30. Bg5+ {[%emt 0:01:
36]} (30. Be3 $142) 30... Kf8 $17 {[%emt 0:01:00] Hoping for . ..cxb4.} 31. Bh6
{[%emt 0:01:55] [#]} (31. Rd1 $17 Rc6 32. Qd8+ Rxd8 33. Rxd8+ Qe8 34. Rxe8+
Kxe8 35. Be3) 31... Rd8 $1 $19 {[%emt 0:02:48]} (31... gxh6 $2 32. Qd6+ Ke8 33.
O-O-O $18) 32. Bxg7+ {[%emt 0:00:48]} Qxg7 {[%emt 0:00:22]} 33. Qxf5+ {[%emt 0:
00:13]} Qf7 {[%emt 0:00:09]} 34. Qg5 {[%emt 0:00:04] [#]} (34. Rg5 {keeps
fighting.}) 34... Rd6 $1 {[%emt 0:01:10] And now ...Rad8 would win.} 35. Rd1 {
[%emt 0:00:31]} Rad8 {[%emt 0:02:45]} (35... Rxd1+ $19 36. Kxd1 cxb4 37. Qh6+
Ke8) 36. Qxd8+ $11 {[%emt 0:00:20]} ({Wrong is} 36. Rxd6 $2 Rxd6 37. Qc1 Qc4
$19) 36... Rxd8 {[%emt 0:00:02]} 37. Rxd8+ {[%emt 0:00:04]} Ke7 {[%emt 0:00:05]
} 38. Ra8 {[%emt 0:00:09] [#]} cxb4 $1 {[%emt 0:06:38]} 39. Rxa7 {[%emt 0:00:
06] Endgame KQ-KRR} Kf6 {[%emt 0:00:03] Threatens to win with ...b3.} 40. cxb4
{[%emt 0:00:20] The position is equal.} Qe7 {[%emt 0:00:00]} (40... Qc7 $5 41.
Ra8 Qc3+ 42. Kf1 Qxb4 $11) 41. Ra8 {[%emt 0:36:42]} Qxb4+ {[%emt 0:30:06]} 42.
Kf1 {[%emt 0:00:26]} Qxh4 {[%emt 0:00:00]} 43. Rf8+ {[%emt 0:00:00]} Ke7 {
[%emt 0:00:00]} 44. Rfg8 {[%emt 0:00:00]} Kd6 {[%emt 0:00:00]} 45. R3g6+ {
[%emt 0:00:00]} Kc5 {[%emt 0:00:00]} 46. Rc8+ {[%emt 0:00:00]} Kd5 {[%emt 0:01:
35]} 47. Rb6 {[%emt 0:00:00]} Qh1+ {[%emt 0:00:00] And White is the lucky
defender. Weighted Error Value: White=0.14 (very precise) / Black=0.15 (very
precise)} 1/2-1/2

[Event "44th Chess Olympiad Open 2022"]
[Site "Chennai"]
[Date "2022.08.03"]
[Round "6.10"]
[White "Kazakouski, Valery"]
[Black "Puranik, Abhimanyu"]
[Result "0-1"]
[WhiteElo "2528"]
[BlackElo "2612"]
[Annotator "TA"]
[PlyCount "86"]
[EventDate "2022.??.??"]
[TimeControl "60"]

{[%evp 27,86,32,28,25,22,4,27,10,35,0,0,-14,7,-21,-22,-56,-57,-51,-59,-51,-57,
-80,-83,-93,-83,-104,-110,-113,-113,-170,-160,-276,-303,-293,-276,-278,-286,
-303,-293,-288,-185,-179,-170,-264,-245,-275,-163,-198,-197,-277,-277,-2264,
-1740,-5118,-5006,-5257,-1717,-893,-644,-483,-444]} 1. Nf3 {[%emt 0:00:07]} Nf6
{[%emt 0:00:14]} 2. c4 {[%emt 0:00:15]} c5 {[%emt 0:00:27]} 3. Nc3 {[%emt 0:00:
00]} e6 {[%emt 0:01:01]} 4. g3 {[%emt 0:01:22]} b6 {[%emt 0:01:26]} 5. Bg2 {
[%emt 0:01:12]} Bb7 {[%emt 0:00:04]} 6. O-O {[%emt 0:00:19]} Be7 {[%emt 0:00:
00]} 7. d4 {[%emt 0:00:46]} cxd4 {[%emt 0:00:07]} 8. Qxd4 {[%emt 0:00:10]} d6 {
[%emt 0:01:55]} 9. Bg5 {[%emt 0:03:09]} a6 {[%emt 0:01:24]} 10. Bxf6 {[%emt 0:
00:00]} Bxf6 {[%emt 0:00:06]} 11. Qf4 {[%emt 0:00:14]} O-O {[%emt 0:00:38]} 12.
Rfd1 {[%emt 0:01:58]} Be7 {[%emt 0:02:29]} 13. Ne4 {[%emt 0:02:54]} Bxe4 {
[%emt 0:00:16]} 14. Qxe4 {[%emt 0:00:07]} Ra7 $1 {[%emt 0:00:02]} 15. Rac1 {
[%emt 0:12:48][%cal Ya1c1,Yc1c2,Yc2d2] A30: Symmetrical English: Double
Fianchetto and Hedgehog.} Rc7 {[%emt 0:05:36]} 16. Rc2 {[%emt 0:10:37]} Qc8 {
[%emt 0:13:12][%cal Yd6d5]} 17. Rdc1 {[%emt 0:03:53] White has an edge.} Rd8 {
[%emt 0:04:50] [#]} 18. b3 $146 {[%emt 0:16:19]} ({Predecessor:} 18. Nd4 Bf6
19. e3 Qd7 20. b3 Rdc8 21. Qd3 Qe8 22. Ne2 Be7 23. Nd4 Bf6 {½-½ (23)
Schrittwieser,H (2206)-Steiner,S (2272) Austria 2012}) 18... Nc6 {[%emt 0:00:
00][%cal Yb8c6,Yc6b4,Yb4d5,Yd5c3,Yc3e2]} 19. Rd2 {[%emt 0:11:28]} h6 {[%emt 0:
04:18]} 20. a4 {[%emt 0:04:18]} Nb4 {[%emt 0:07:33]} 21. Rf1 {[%emt 0:00:00]}
d5 {[%emt 0:05:32]} 22. cxd5 {[%emt 0:00:38]} Nxd5 {[%emt 0:03:13]} 23. Ne5 {
[%emt 0:03:44]} Bf6 {[%emt 0:02:02]} 24. Nc4 {[%emt 0:05:23]} b5 {[%emt 0:00:
00] Black converts the advantage convincingly.} 25. axb5 {[%emt 0:01:30]} axb5
{[%emt 0:00:09]} 26. Ne3 {[%emt 0:01:24][%cal Re3d5]} Nc3 {[%emt 0:00:42][%csl
Yd2,Ye4]} 27. Rxd8+ {[%emt 0:00:47]} Qxd8 {[%emt 0:00:02]} 28. Qc2 {[%emt 0:02:
20]} (28. Qf3 $17) 28... Ra7 $1 $19 {[%emt 0:01:45] Strongly threatening ...
Ra2.} 29. Ng4 {[%emt 0:07:13]} (29. Bf3 $17) 29... Ra2 {[%emt 0:00:00]} 30.
Nxf6+ {[%emt 0:00:07]} Qxf6 {[%emt 0:00:04]} 31. Qd3 {[%emt 0:00:00]} Nxe2+ {
[%emt 0:06:19]} 32. Kh1 {[%emt 0:00:07]} Nd4 {[%emt 0:00:09]} 33. f4 {[%emt 0:
01:47]} Ra3 {[%emt 0:11:13]} 34. Rb1 {[%emt 0:01:21] [#]} g6 $1 {[%emt 0:00:15]
} 35. Bf1 {[%emt 0:01:09]} (35. Be4 {keeps fighting.}) 35... Ra2 {[%emt 0:05:
55]} 36. Rd1 {[%emt 0:00:29]} e5 {[%emt 0:03:36]} (36... Nc6 $142 {White must
now prevent ...Qb2.} 37. Rd2 Rxd2 38. Qxd2 b4) 37. Qe4 {[%emt 0:00:00]} Rb2 {
[%emt 0:02:18]} ({Inferior is} 37... Nxb3 38. Bxb5 exf4 39. Bc4 fxg3 40. hxg3
$17) 38. Bg2 {[%emt 0:00:41] [#]} (38. fxe5 $142 Qf3+ 39. Qxf3 Nxf3 40. Bg2
Nxe5 41. Bd5) 38... Re2 $1 {[%emt 0:02:13]} ({Resist} 38... Rxb3 39. fxe5 Qf5
40. Qxd4 $18) 39. fxe5 $2 {[%emt 0:00:49] [#]} (39. Qb7) 39... Qf2 $1 {[%emt 0:
00:17] Black is clearly winning.} 40. Qa8+ {[%emt 0:00:38]} (40. Rf1 Qxf1+)
40... Kg7 {[%emt 0:00:43] ( -> ...Re1+)} 41. h3 {[%emt 0:09:23]} Re1+ {[%emt 0:
02:12]} (41... Nf5 $142 42. Kh2 Qxg3+ 43. Kh1 Qe3) 42. Rxe1 {[%emt 0:00:00]}
Qxe1+ {[%emt 0:00:02]} 43. Kh2 {[%emt 0:00:14]} Ne2 {[%emt 0:00:10] Weighted
Error Value: White=0.81/Black=0.26 (precise)} 0-1

[Event "44th Chess Olympiad Open 2022"]
[Site "Chennai"]
[Date "2022.08.03"]
[Round "6.10"]
[White "Juksta, Karolis"]
[Black "Sethuraman, S.P..."]
[Result "0-1"]
[WhiteElo "2412"]
[BlackElo "2623"]
[Annotator "TA"]
[PlyCount "84"]
[EventDate "2022.??.??"]
[TimeControl "60"]

{[%evp 13,84,-21,-25,-22,-6,-14,0,-14,-1,-33,-33,-59,-52,-52,-57,-56,-53,-86,
-106,-88,-53,-66,-60,-98,-111,-112,-102,-118,-114,-115,-67,-94,-98,-116,-68,
-180,-180,-225,-134,-161,-151,-172,0,-122,-72,-112,-125,-145,0,-164,-139,-266,
-256,-256,-245,-404,-389,-540,-536,-559,-559,-558,-179,-558,-556,-544,-542,
-527,-517,-501,-504,-462,-445]} 1. d4 {[%emt 0:00:04]} Nf6 {[%emt 0:00:20]} 2.
c4 {[%emt 0:00:11]} e6 {[%emt 0:00:03]} 3. Nc3 {[%emt 0:00:08]} Bb4 {[%emt 0:
00:00]} 4. a3 {[%emt 0:00:07]} Bxc3+ {[%emt 0:00:35]} 5. bxc3 {[%emt 0:00:07]}
c5 {[%emt 0:00:38]} 6. f3 {[%emt 0:00:37]} d6 {[%emt 0:02:15]} 7. e4 {[%emt 0:
00:00]} Nc6 {[%emt 0:00:10]} 8. Ne2 {[%emt 0:00:58] now scores much better
than the old 8.Be3. E24: Nimzo-Indian: Sämisch: Unusual Black 5th moves and 5.
..c5 sidelines.} b6 {[%emt 0:00:19]} 9. Bg5 {[%emt 0:00:35]} h6 {[%emt 0:00:05]
} 10. Bh4 {[%emt 0:00:39] The position is equal.} O-O {[%emt 0:00:07] [#]} 11.
Qc2 $146 {[%emt 0:08:04]} ({Predecessor:} 11. Nc1 Ba6 12. Nb3 Rc8 13. Be2 cxd4
14. cxd4 d5 15. cxd5 Bxe2 16. Qxe2 exd5 17. e5 {½-½ (23) Ljubicic,A (2465)
-Fischer,W (2445) ICCF email 2017}) 11... Qe7 {[%emt 0:25:35]} 12. f4 {[%emt 0:
00:00]} e5 $1 {[%emt 0:02:10]} 13. d5 {[%emt 0:00:22]} Na5 {[%emt 0:00:29]
Hoping for ...exf4.} 14. f5 {[%emt 0:00:12]} Ba6 {[%emt 0:02:08]} (14... Nxc4
15. Ng3 Na5 16. Nh5 $14) 15. Bxf6 {[%emt 0:09:37]} Qxf6 {[%emt 0:00:13]} 16. h4
{[%emt 0:00:03]} h5 {[%emt 0:06:24]} 17. Ng3 {[%emt 0:12:36]} Qh6 $1 {[%emt 0:
00:00]} (17... Bxc4 18. Bxc4 Nxc4 19. Qe2 $14) (17... Nxc4 18. Qa4 b5 19. Qxa6
$16) 18. Qf2 {[%emt 0:16:56]} g6 {[%emt 0:02:00]} (18... Bxc4 $6 19. Bxc4 Nxc4
20. Qe2 $11) 19. Be2 {[%emt 0:10:30]} Bxc4 {[%emt 0:02:26]} 20. O-O {[%emt 0:
00:00]} b5 {[%emt 0:10:22]} 21. Kh2 {[%emt 0:02:36]} Bxe2 {[%emt 0:07:59]} (
21... a6 $17 22. Qe1 Bxe2 23. Qxe2 Nb3) 22. Qxe2 $15 {[%emt 0:02:07]} Nc4 {
[%emt 0:01:10]} 23. Rf2 {[%emt 0:04:20]} Kh8 {[%emt 0:08:56]} (23... a5 $17 24.
Nf1 (24. a4 Ne3 $17) 24... a4) 24. Rg1 {[%emt 0:07:15]} (24. Nf1 $15) 24... Qe3
$19 {[%emt 0:02:06]} 25. Qa2 {[%emt 0:05:15]} Rg8 {[%emt 0:08:06]} (25... Qxc3
$19 26. Rb1 Qd3) 26. Rf3 {[%emt 0:03:03]} Qd2 {[%emt 0:00:27]} 27. Qb1 {
[%emt 0:01:28]} Nxa3 {[%emt 0:06:33]} (27... Rab8 $19 {aiming for ...a5.} 28.
Qa1 a5) 28. Qf1 {[%emt 0:00:54]} (28. Qb3 $11 {keeps the balance.}) 28... Nc4
$17 {[%emt 0:08:09]} 29. fxg6 {[%emt 0:01:04]} Rxg6 {[%emt 0:00:26] And now ...
Rg4 would win.} ({Much worse is} 29... fxg6 $6 30. Rf7 Rg7 31. Rf8+ Rxf8 32.
Qxf8+ Rg8 33. Qf6+ Kh7 34. Nxh5 gxh5 35. Qf7+ Rg7 36. Qf5+ Kh6 37. Qf6+ Kh7 38.
Qf5+ Rg6 39. Qf7+ Kh6 40. Qf8+ Rg7 41. Qf6+ Kh7 42. Qf5+ $11) 30. Rxf7 {
[%emt 0:03:08] [#] Strongly threatening Rf8+.} Rag8 {[%emt 0:00:14] Black is
more active.} (30... Qxc3 $2 31. Rf8+ Rxf8 32. Qxf8+ Kh7 33. Nf5 $18) ({
Black should play} 30... Qh6 $1 $17 {White must now prevent ...Nd2.} 31. Qf5 a5
) 31. Qf3 $2 {[%emt 0:01:34] [#]} (31. Rf5 $1 $11 {and White has nothing to
worry.} R8g7 32. Qf3) 31... Qe3 $1 $40 {[%emt 0:01:05] Threatens to win with ..
.Qxf3. Black has strong attack.} 32. Nxh5 {[%emt 0:00:43]} (32. Rf1 $17 {
was called for.}) 32... Qxf3 {[%emt 0:00:38] Chess con chili.} 33. Rxf3 {
[%emt 0:00:06]} Nd2 {[%emt 0:00:40][%csl Ye4,Yf3]} 34. Rf7 {[%emt 0:00:25]} (
34. Rd3 {keeps fighting.} Nxe4 35. Re3) 34... Nxe4 {[%emt 0:00:03]} 35. Kh3 {
[%emt 0:00:51]} Rh6 {[%emt 0:01:02]} 36. Re1 {[%emt 0:00:49]} Ng5+ {[%emt 0:00:
00]} ({Worse is} 36... Rxh5 37. Rxe4 Rh7 38. Rf6 $17) 37. hxg5 {[%emt 0:00:26]}
Rxh5+ {[%emt 0:00:05] KRR-KRR} 38. Kg3 $2 {[%emt 0:00:09]} (38. Kg4 {nothing
else works.} Rgxg5+ 39. Kf3) 38... Rgxg5+ {[%emt 0:00:14] Black is clearly
winning.} 39. Kf3 {[%emt 0:00:09]} Rf5+ {[%emt 0:00:51]} 40. Rxf5 {[%emt 0:00:
00]} Rxf5+ {[%emt 0:00:05]} 41. Ke3 {[%emt 0:06:00]} Rf4 {[%emt 0:01:00]} 42.
Rb1 {[%emt 0:01:02]} a6 {[%emt 0:00:22] Weighted Error Value: White=0.44/
Black=0.16 (very precise)} 0-1

[Event "44th Chess Olympiad Open 2022"]
[Site "Chennai"]
[Date "2022.08.03"]
[Round "6.11"]
[White "Brkic, Ante"]
[Black "Cruz, Cristhian"]
[Result "0-1"]
[WhiteElo "2611"]
[BlackElo "2579"]
[Annotator "TA"]
[PlyCount "96"]
[EventDate "2022.??.??"]
[TimeControl "60"]

{[%evp 9,96,0,33,41,56,47,51,0,0,0,0,0,0,0,0,0,0,0,0,0,0,-144,-148,-129,-153,
-275,-265,-243,-27,-21,-17,-22,-21,-64,-47,-172,-172,-173,-99,-106,-105,-91,
-44,-433,-451,-446,-451,-446,-428,-502,-378,-378,-316,-566,-563,-553,-547,-533,
-485,-1535,-1486,-1433,-1303,-5297,-5398,-5398,-5398,-2668,-5522,-1556,-2502,
-12845,-4133,-29967,-29970,-29969,-29971,-29970,-29971,-29970,-29971,-29971,
-29971,-29970,-29967,-12812,-10418,-5214,-1736]} 1. e4 {[%emt 0:00:04]} c6 {
[%emt 0:00:23]} 2. d4 {[%emt 0:00:10]} d5 {[%emt 0:00:33]} 3. e5 {[%emt 0:00:
00]} c5 {[%emt 0:01:02]} 4. Nf3 {[%emt 0:00:38]} Nc6 {[%emt 0:03:38]} 5. dxc5 {
[%emt 0:01:07]} e6 {[%emt 0:02:10]} 6. Be3 {[%emt 0:06:34] B12: Caro-Kann:
Advance Variation.} Nh6 {[%emt 0:04:25]} 7. Bxh6 {[%emt 0:08:20]} gxh6 {
[%emt 0:00:05]} 8. Bd3 {[%emt 0:00:12] [#]} ({White should try} 8. Bb5 $14)
8... f6 $146 {[%emt 0:24:35]} ({Predecessor:} 8... Bg7 9. c3 Nxe5 10. Nxe5 Bxe5
11. f4 Bg7 12. O-O O-O 13. Qc2 f5 14. Nd2 Qc7 {0-1 (30) Leenhouts,K (2398)
-Kroeze,F (2419) Netherlands 2006}) 9. O-O {[%emt 0:31:43]} fxe5 {[%emt 0:00:
00]} 10. Bb5 {[%emt 0:00:01]} Bg7 {[%emt 0:00:12]} 11. Bxc6+ {[%emt 0:04:09]}
bxc6 {[%emt 0:00:07]} 12. Nxe5 $1 {[%emt 0:00:07] Threatening mate with Qh5+.}
O-O $1 {[%emt 0:00:07]} 13. f4 {[%emt 0:00:18]} Ba6 {[%emt 0:12:02]} 14. Rf3 {
[%emt 0:00:13] Black must now prevent Qd4.} (14. Nxc6 $2 Qc7 15. Rf3 Qxc6 $19)
14... Qb8 {[%emt 0:05:16][%csl Yb2,Ye5]} 15. Qd4 {[%emt 0:03:59] [#]} (15. Nd2
$11) 15... Rxf4 $3 $17 {[%emt 0:03:55]} 16. Qxf4 {[%emt 0:16:32]} (16. Rxf4 $2
{is the wrong capture.} Bxe5 17. Qe3 (17. Rg4+ $2 Kh8 $19) 17... Qxb2 $19)
16... Qxb2 {[%emt 0:00:29]} 17. Qg4 {[%emt 0:15:31]} ({Wrong is} 17. Rg3 $2 Rf8
18. Rxg7+ Kxg7 19. Qg3+ Kh8 $19) (17. Nxc6 $17 Qxa1 18. Qb4) 17... Qxe5 $19 {
[%emt 0:13:40]} (17... Qxa1 {gets mated.} 18. Qxe6+ Kh8 19. Nf7+ Kg8 20. Nd8+
Kh8 21. Qe8+) 18. Nc3 {[%emt 0:00:02]} Be2 {[%emt 0:01:58] Prevents Rd1.
Really sharp!} (18... Rf8 $19 {...Qd4+ is the strong threat.} 19. Rg3 Rf4) 19.
Nxe2 $11 {[%emt 0:00:28]} Qxa1+ {[%emt 0:00:02]} 20. Kf2 {[%emt 0:02:35]} Qe5
$36 {[%emt 0:00:37] White is under pressure.} 21. c3 {[%emt 0:00:00]} Rb8 {
[%emt 0:01:44]} 22. Nf4 {[%emt 0:01:22]} (22. Qh4 $1 $15) 22... Rb2+ $19 {
[%emt 0:03:35]} 23. Kg3 {[%emt 0:00:01] [#]} Rxa2 {[%emt 0:03:07]} (23... Re2
$1 $19 24. h4 Re1) 24. Qxe6+ $17 {[%emt 0:01:58]} Qxe6 {[%emt 0:00:00]} 25.
Nxe6 $19 {[%emt 0:00:01] Endgame KRB-KRN} Ra3 {[%emt 0:00:00]} (25... Ra4 $17 {
aiming for ...a5.} 26. Nd8 Rc4 27. Nxc6 Rxc5 28. Ne7+ Kh8) 26. c4 $2 {[%emt 0:
00:07] White is now going downhill.} ({White should play} 26. Nxg7 $15 Kxg7 27.
Kf4) 26... Rxf3+ {[%emt 0:02:38]} 27. Kxf3 {[%emt 0:00:01] Hoping for cxd5.}
dxc4 {[%emt 0:00:09] KB-KN} 28. Nd8 {[%emt 0:00:00]} Bf8 {[%emt 0:00:42]} 29.
Nxc6 {[%emt 0:01:23]} Bxc5 {[%emt 0:00:14]} 30. Ke2 {[%emt 0:00:12]} Kf8 {
[%emt 0:01:08]} 31. Kd2 $2 {[%emt 0:00:51]} (31. Ne5 Bd6 32. Nxc4 Bxh2 33. Na5)
31... Kf7 {[%emt 0:00:27]} 32. Kc3 {[%emt 0:00:00]} Ke6 {[%emt 0:00:18]
Threatens to win with ...Kd5.} 33. Kxc4 {[%emt 0:00:00]} Bg1 {[%emt 0:00:11]}
34. h3 {[%emt 0:00:11]} (34. Kd3 $142 Kd5 35. Ne7+ Ke5 36. Nc6+ Kf4 37. Ke2)
34... Kf5 {[%emt 0:00:36] Strongly threatening ... Kf4.} 35. Kd3 {[%emt 0:01:
10]} Kf4 {[%emt 0:00:24]} 36. Ke2 {[%emt 0:00:49]} Kg3 {[%emt 0:00:19]} 37. Kf1
{[%emt 0:00:23]} Bb6 {[%emt 0:00:15]} 38. Ne5 {[%emt 0:00:42]} a5 {[%emt 0:00:
47][%cal Ya7a5,Ya5a4,Ya4a3]} 39. Nc4 {[%emt 0:00:02] [#]} a4 $1 {[%emt 0:00:23]
And now ...Bc5 would win.} 40. Na3 {[%emt 0:01:06]} h5 {[%emt 0:00:53][%cal
Yh6h5,Yh5h4]} 41. Nb5 {[%emt 0:03:48]} h4 {[%emt 0:01:10]} 42. Nc3 {[%emt 0:02:
38]} a3 {[%emt 0:05:03]} 43. Ne2+ {[%emt 0:02:01]} Kh2 {[%emt 0:00:04]} 44. Nc3
{[%emt 0:00:19]} Ba5 {[%emt 0:03:12]} 45. Na2 {[%emt 0:00:04]} Kg3 {[%emt 0:00:
33]} 46. Nc1 {[%emt 0:00:00]} Kf4 {[%emt 0:00:58]} 47. Ke2 {[%emt 0:00:10]} Ke4
{[%emt 0:00:34] ( -> ...Kd4)} 48. Na2 {[%emt 0:00:30]} Kd4 {[%emt 0:00:31]
Weighted Error Value: White=0.75/Black=0.13 (very precise)} 0-1